[Event "Rapid Tournament (RAP)"]
[Site "Biel, Switzerland"]
[Date "2026.07.12"]
[Round "1.21"]
[White "Cao, Qingfeng"]
[Black "Schmied, Stefan"]
[Result "1-0"]
[TimeControl "15 + 5"]
[WhiteTitle "-"]
[BlackTitle "-"]
[WhiteFideId "8627568"]
[BlackFideId "1335804"]
[WhiteElo "2265"]
[BlackElo "1778"]

1. d4 {[%clk 00:15:07]} {[%emt 00:00:03]} d5 {[%clk 00:15:07]} {[%emt
00:00:03]} 2. c4 {[%clk 00:15:07]} {[%emt 00:00:05]} c6 {[%clk 00:15:10]}
{[%emt 00:00:02]} 3. cxd5 {[%clk 00:14:56]} {[%emt 00:00:15]} cxd5 {[%clk
00:15:15]} 4. Bf4 {[%clk 00:14:58]} {[%emt 00:00:03]} Nc6 {[%clk 00:15:15]}
{[%emt 00:00:04]} 5. e3 {[%clk 00:15:01]} {[%emt 00:00:02]} a6 {[%clk
00:14:57]} {[%emt 00:00:23]} 6. Bd3 {[%clk 00:14:58]} {[%emt 00:00:08]} Nf6
{[%clk 00:14:59]} {[%emt 00:00:03]} 7. Nc3 {[%clk 00:13:51]} {[%emt 00:01:13]}
g6 {[%clk 00:13:54]} {[%emt 00:01:10]} 8. Nf3 {[%clk 00:13:43]} {[%emt
00:00:13]} Bg7 {[%clk 00:13:06]} {[%emt 00:00:53]} 9. h3 {[%clk 00:13:41]}
{[%emt 00:00:06]} Bf5 {[%clk 00:12:48]} {[%emt 00:00:23]} 10. O-O {[%clk
00:13:32]} {[%emt 00:00:14]} Bxd3 {[%clk 00:12:50]} {[%emt 00:00:04]} 11. Qxd3
{[%clk 00:13:35]} {[%emt 00:00:02]} O-O {[%clk 00:12:40]} {[%emt 00:00:15]} 12.
Rac1 {[%clk 00:13:29]} {[%emt 00:00:11]} Rc8 {[%clk 00:12:13]} {[%emt
00:00:30]} 13. Na4 {[%clk 00:12:29]} {[%emt 00:01:07]} Nd7 {[%clk 00:11:03]}
{[%emt 00:01:15]} 14. Qb3 {[%clk 00:10:42]} {[%emt 00:01:52]} e5 {[%clk
00:07:45]} {[%emt 00:03:22]} 15. dxe5 {[%clk 00:10:03]} {[%emt 00:00:45]} Ndxe5
{[%clk 00:07:11]} {[%emt 00:00:39]} 16. Nxe5 {[%clk 00:08:49]} {[%emt
00:01:18]} Nxe5 {[%clk 00:06:46]} {[%emt 00:00:30]} 17. Rxc8 {[%clk 00:08:43]}
{[%emt 00:00:11]} Qxc8 {[%clk 00:06:49]} {[%emt 00:00:03]} 18. Nb6 {[%clk
00:08:41]} {[%emt 00:00:07]} Qe6 {[%clk 00:04:51]} {[%emt 00:02:03]} 19. Nxd5
{[%clk 00:08:40]} {[%emt 00:00:06]} b5 {[%clk 00:04:22]} {[%emt 00:00:34]} 20.
Bxe5 {[%clk 00:06:22]} {[%emt 00:02:22]} Bxe5 {[%clk 00:04:20]} {[%emt
00:00:08]} 21. Rd1 {[%clk 00:06:08]} {[%emt 00:00:18]} Rc8 {[%clk 00:02:29]}
{[%emt 00:01:56]} 22. e4 {[%clk 00:02:51]} {[%emt 00:03:23]} Kg7 {[%clk
00:01:54]} {[%emt 00:00:41]} 23. f4 {[%clk 00:02:46]} {[%emt 00:00:09]} Bb8
{[%clk 00:01:53]} {[%emt 00:00:05]} 24. e5 {[%clk 00:01:55]} {[%emt 00:00:57]}
Rc4 {[%clk 00:01:37]} {[%emt 00:00:19]} 25. Kh1 {[%clk 00:01:54]} {[%emt
00:00:08]} h5 {[%clk 00:01:04]} {[%emt 00:00:38]} 26. Qg3 {[%clk 00:01:19]}
{[%emt 00:00:40]} Ba7 {[%clk 00:00:31]} {[%emt 00:00:38]} 27. Nf6 {[%clk
00:01:13]} {[%emt 00:00:10]} Rd4 {[%clk 00:00:21]} {[%emt 00:00:15]} 28. Nxh5+
{[%clk 00:00:33]} {[%emt 00:00:45]} Kh6 {[%clk 00:00:09]} {[%emt 00:00:18]} 29.
Qg5+ {[%clk 00:00:32]} {[%emt 00:00:06]} Kh7 {[%clk 00:00:13]} {[%emt
00:00:01]} 30. Nf6+ {[%clk 00:00:31]} {[%emt 00:00:05]} Kg7 {[%clk 00:00:16]}
{[%emt 00:00:02]} 31. Rf1 {[%clk 00:00:26]} {[%emt 00:00:10]} Rd2 {[%clk
00:00:17]} {[%emt 00:00:04]} 32. Ng4 {[%clk 00:00:21]} {[%emt 00:00:11]} Kf8
{[%clk 00:00:11]} {[%emt 00:00:11]} 33. f5 {[%clk 00:00:15]} {[%emt 00:00:12]}
gxf5 {[%clk 00:00:10]} {[%emt 00:00:05]} 34. Qxd2 {[%clk 00:00:10]} {[%emt
00:00:10]} 1-0

[Event "Rapid Tournament (RAP)"]
[Site "Biel, Switzerland"]
[Date "2026.07.12"]
[Round "1.22"]
[White "Pinelli, Gian"]
[Black "Tureshbayev, Anuar"]
[Result "0-1"]
[TimeControl "15 + 5"]
[WhiteTitle "-"]
[BlackTitle "-"]
[WhiteFideId "1348710"]
[BlackFideId "651081709"]
[WhiteElo "1774"]
[BlackElo "2246"]

1. d4 {[%clk 00:15:07]} Nf6 {[%clk 00:15:08]} {[%emt 00:00:01]} 2. c4 {[%clk
00:15:09]} {[%emt 00:00:04]} e6 {[%clk 00:15:12]} {[%emt 00:00:02]} 3. Nc3
{[%clk 00:15:12]} Bb4 {[%clk 00:15:14]} {[%emt 00:00:03]} 4. Qc2 {[%clk
00:15:15]} {[%emt 00:00:02]} d5 {[%clk 00:15:09]} {[%emt 00:00:10]} 5. a3
{[%clk 00:15:18]} {[%emt 00:00:02]} Bxc3+ {[%clk 00:15:13]} {[%emt 00:00:02]} 6.
Qxc3 {[%clk 00:15:21]} {[%emt 00:00:02]} c5 {[%clk 00:15:08]} {[%emt 00:00:10]}
7. dxc5 {[%clk 00:15:02]} {[%emt 00:00:24]} d4 {[%clk 00:15:12]} 8. Qc2 {[%clk
00:15:06]} {[%emt 00:00:01]} Nc6 {[%clk 00:14:49]} {[%emt 00:00:28]} 9. e3
{[%clk 00:13:26]} {[%emt 00:01:45]} e5 {[%clk 00:14:50]} {[%emt 00:00:04]} 10.
Bd3 {[%clk 00:13:13]} {[%emt 00:00:18]} O-O {[%clk 00:14:02]} {[%emt 00:00:53]}
11. Ne2 {[%clk 00:13:13]} {[%emt 00:00:04]} Qa5+ {[%clk 00:12:52]} {[%emt
00:01:15]} 12. Bd2 {[%clk 00:12:59]} {[%emt 00:00:19]} Qxc5 {[%clk 00:12:56]}
{[%emt 00:00:02]} 13. b4 {[%clk 00:12:36]} {[%emt 00:00:28]} Qe7 {[%clk
00:11:54]} {[%emt 00:01:07]} 14. Ng3 {[%clk 00:12:00]} {[%emt 00:00:40]} dxe3
{[%clk 00:10:21]} {[%emt 00:01:39]} 15. Bxe3 {[%clk 00:11:54]} {[%emt
00:00:11]} Nd4 {[%clk 00:10:23]} {[%emt 00:00:02]} 16. Bxd4 {[%clk 00:10:55]}
{[%emt 00:01:04]} exd4+ {[%clk 00:10:27]} {[%emt 00:00:01]} 17. Qe2 {[%clk
00:10:59]} {[%emt 00:00:02]} Qd6 {[%clk 00:10:11]} {[%emt 00:00:21]} 18. O-O
{[%clk 00:10:54]} {[%emt 00:00:09]} Re8 {[%clk 00:09:57]} {[%emt 00:00:18]} 19.
Qd2 {[%clk 00:10:42]} {[%emt 00:00:13]} b6 {[%clk 00:08:40]} {[%emt 00:01:27]}
20. Rfe1 {[%clk 00:10:25]} {[%emt 00:00:22]} Be6 {[%clk 00:07:58]} {[%emt
00:00:47]} 21. Rac1 {[%clk 00:10:05]} {[%emt 00:00:26]} a5 {[%clk 00:07:40]}
{[%emt 00:00:23]} 22. Nf5 {[%clk 00:08:53]} {[%emt 00:01:16]} Bxf5 {[%clk
00:07:40]} {[%emt 00:00:05]} 23. Bxf5 {[%clk 00:08:57]} {[%emt 00:00:02]} axb4
{[%clk 00:07:31]} {[%emt 00:00:14]} 24. axb4 {[%clk 00:08:58]} {[%emt
00:00:03]} g6 {[%clk 00:07:27]} {[%emt 00:00:10]} 25. Bd3 {[%clk 00:08:45]}
{[%emt 00:00:18]} Ng4 {[%clk 00:07:03]} {[%emt 00:00:28]} 26. g3 {[%clk
00:08:38]} {[%emt 00:00:12]} Ne5 {[%clk 00:07:05]} {[%emt 00:00:03]} 27. Be4
{[%clk 00:08:14]} {[%emt 00:00:29]} Rac8 {[%clk 00:07:03]} {[%emt 00:00:07]} 28.
Red1 {[%clk 00:06:41]} {[%emt 00:01:38]} Red8 {[%clk 00:04:14]} {[%emt
00:02:54]} 29. Qa2 {[%clk 00:06:13]} {[%emt 00:00:32]} Qxb4 {[%clk 00:04:02]}
{[%emt 00:00:18]} 30. Bd5 {[%clk 00:05:44]} {[%emt 00:00:34]} Qc5 {[%clk
00:03:14]} {[%emt 00:00:53]} 31. Qb2 {[%clk 00:05:00]} {[%emt 00:00:49]} b5
{[%clk 00:03:10]} {[%emt 00:00:09]} 32. Qxd4 {[%clk 00:03:46]} {[%emt
00:01:19]} Nf3+ {[%clk 00:03:14]} {[%emt 00:00:01]} 0-1

[Event "Rapid Tournament (RAP)"]
[Site "Biel, Switzerland"]
[Date "2026.07.12"]
[Round "1.23"]
[White "Haimovich, Tal"]
[Black "Belmadani, Naim"]
[Result "1-0"]
[TimeControl "15 + 5"]
[WhiteTitle "-"]
[BlackTitle "-"]
[WhiteFideId "2801698"]
[BlackFideId "1354302"]
[WhiteElo "2245"]
[BlackElo "1758"]

1. Nf3 {[%clk 00:15:07]} {[%emt 00:00:02]} Nf6 {[%clk 00:15:02]} {[%emt
00:00:08]} 2. b3 {[%clk 00:15:10]} {[%emt 00:00:03]} g6 {[%clk 00:14:47]}
{[%emt 00:00:19]} 3. Bb2 {[%clk 00:15:13]} {[%emt 00:00:02]} Bg7 {[%clk
00:14:51]} {[%emt 00:00:02]} 4. c4 {[%clk 00:15:16]} {[%emt 00:00:02]} O-O
{[%clk 00:14:52]} {[%emt 00:00:04]} 5. e3 {[%clk 00:15:18]} {[%emt 00:00:03]}
d5 {[%clk 00:14:55]} {[%emt 00:00:01]} 6. cxd5 {[%clk 00:15:19]} {[%emt
00:00:04]} Nxd5 {[%clk 00:14:32]} {[%emt 00:00:28]} 7. Bxg7 {[%clk 00:15:22]}
{[%emt 00:00:03]} Kxg7 {[%clk 00:14:35]} {[%emt 00:00:01]} 8. h4 {[%clk
00:14:58]} {[%emt 00:00:30]} Bg4 {[%clk 00:14:28]} {[%emt 00:00:10]} 9. Be2
{[%clk 00:14:53]} {[%emt 00:00:11]} Nd7 {[%clk 00:12:43]} {[%emt 00:01:50]} 10.
Qc1 {[%clk 00:14:37]} {[%emt 00:00:22]} e6 {[%clk 00:11:58]} {[%emt 00:00:50]}
11. Nc3 {[%clk 00:14:13]} {[%emt 00:00:29]} c6 {[%clk 00:11:19]} {[%emt
00:00:44]} 12. Ne4 {[%clk 00:13:48]} {[%emt 00:00:29]} N7f6 {[%clk 00:10:35]}
{[%emt 00:00:50]} 13. Qb2 {[%clk 00:13:22]} {[%emt 00:00:31]} Nb4 {[%clk
00:10:06]} {[%emt 00:00:32]} 14. a3 {[%clk 00:12:15]} {[%emt 00:01:13]} Nc2+
{[%clk 00:09:05]} {[%emt 00:01:04]} 15. Qxc2 {[%clk 00:12:13]} {[%emt
00:00:10]} Nxe4 {[%clk 00:09:08]} {[%emt 00:00:02]} 16. Qxe4 {[%clk 00:12:15]}
{[%emt 00:00:03]} Bf5 {[%clk 00:08:41]} {[%emt 00:00:31]} 17. Qf4 {[%clk
00:12:14]} {[%emt 00:00:07]} Qe7 {[%clk 00:07:49]} {[%emt 00:00:57]} 18. g4
{[%clk 00:11:57]} {[%emt 00:00:22]} Bc2 {[%clk 00:07:35]} {[%emt 00:00:18]} 19.
Qc4 {[%clk 00:11:58]} {[%emt 00:00:04]} 1-0

[Event "Rapid Tournament (RAP)"]
[Site "Biel, Switzerland"]
[Date "2026.07.12"]
[Round "1.24"]
[White "Martin, Gerome"]
[Black "Gautier, Anand"]
[Result "0-1"]
[TimeControl "15 + 5"]
[WhiteTitle "-"]
[BlackTitle "-"]
[WhiteFideId "1360817"]
[BlackFideId "26010186"]
[WhiteElo "1757"]
[BlackElo "2223"]

1. e4 {[%clk 00:15:06]} {[%emt 00:00:02]} c5 {[%clk 00:15:09]} {[%emt
00:00:01]} 2. Nf3 {[%clk 00:15:09]} {[%emt 00:00:02]} d6 {[%clk 00:15:08]}
{[%emt 00:00:06]} 3. Nc3 {[%clk 00:15:11]} {[%emt 00:00:03]} Nf6 {[%clk
00:15:09]} {[%emt 00:00:05]} 4. d4 {[%clk 00:15:09]} {[%emt 00:00:06]} cxd4
{[%clk 00:15:12]} {[%emt 00:00:02]} 5. Nxd4 {[%clk 00:15:11]} {[%emt 00:00:04]}
a6 {[%clk 00:15:15]} {[%emt 00:00:02]} 6. Bc4 {[%clk 00:13:58]} {[%emt
00:01:17]} e6 {[%clk 00:15:13]} {[%emt 00:00:08]} 7. O-O {[%clk 00:13:39]}
{[%emt 00:00:24]} Be7 {[%clk 00:15:11]} {[%emt 00:00:08]} 8. Be3 {[%clk
00:13:12]} {[%emt 00:00:31]} O-O {[%clk 00:15:10]} {[%emt 00:00:06]} 9. f4
{[%clk 00:12:44]} {[%emt 00:00:33]} b5 {[%clk 00:15:06]} {[%emt 00:00:09]} 10.
Bd3 {[%clk 00:12:39]} {[%emt 00:00:10]} Bb7 {[%clk 00:14:56]} {[%emt 00:00:14]}
11. e5 {[%clk 00:12:21]} {[%emt 00:00:24]} dxe5 {[%clk 00:14:44]} {[%emt
00:00:17]} 12. fxe5 {[%clk 00:12:24]} {[%emt 00:00:02]} Nd5 {[%clk 00:14:47]}
{[%emt 00:00:02]} 13. Bd2 {[%clk 00:11:41]} {[%emt 00:00:47]} Bc5 {[%clk
00:12:31]} {[%emt 00:02:22]} 14. Qg4 {[%clk 00:10:05]} {[%emt 00:01:41]} Nc6
{[%clk 00:12:13]} {[%emt 00:00:23]} 15. Nce2 {[%clk 00:09:28]} {[%emt
00:00:41]} Ndb4 {[%clk 00:08:03]} {[%emt 00:04:16]} 16. Bxb4 {[%clk 00:05:40]}
{[%emt 00:03:53]} Nxb4 {[%clk 00:07:59]} {[%emt 00:00:10]} 17. Be4 {[%clk
00:05:30]} {[%emt 00:00:13]} Bxd4+ {[%clk 00:07:57]} {[%emt 00:00:07]} 18. Kh1
{[%clk 00:05:27]} {[%emt 00:00:09]} Bxe4 {[%clk 00:07:25]} {[%emt 00:00:37]} 19.
Qxe4 {[%clk 00:05:30]} {[%emt 00:00:02]} Bc5 {[%clk 00:07:24]} {[%emt
00:00:06]} 20. Rf3 {[%clk 00:04:54]} {[%emt 00:00:41]} Qd5 {[%clk 00:07:02]}
{[%emt 00:00:26]} 21. Qf4 {[%clk 00:04:23]} {[%emt 00:00:37]} Nxc2 {[%clk
00:06:51]} {[%emt 00:00:17]} 22. Nc3 {[%clk 00:03:23]} {[%emt 00:01:04]} Qd4
{[%clk 00:06:32]} {[%emt 00:00:24]} 23. Qxd4 {[%clk 00:02:43]} {[%emt
00:00:45]} Bxd4 {[%clk 00:06:28]} {[%emt 00:00:09]} 24. Rc1 {[%clk 00:02:47]}
Bxc3 {[%clk 00:06:28]} {[%emt 00:00:04]} 25. Rxc3 {[%clk 00:02:42]} {[%emt
00:00:11]} Nb4 {[%clk 00:06:31]} {[%emt 00:00:02]} 26. a3 {[%emt 00:00:23]} Na2
{[%clk 00:06:33]} 0-1

[Event "Rapid Tournament (RAP)"]
[Site "Biel, Switzerland"]
[Date "2026.07.12"]
[Round "1.25"]
[White "Manko, Mariia"]
[Black "Gheorghiu, Harry"]
[Result "1-0"]
[TimeControl "15 + 5"]
[WhiteTitle "-"]
[BlackTitle "-"]
[WhiteFideId "14199220"]
[BlackFideId "1248839"]
[WhiteElo "2210"]
[BlackElo "1751"]

1. d4 {[%clk 00:15:07]} {[%emt 00:00:02]} c5 {[%clk 00:15:09]} {[%emt
00:00:02]} 2. d5 {[%clk 00:15:03]} {[%emt 00:00:09]} Nf6 {[%clk 00:15:11]}
{[%emt 00:00:02]} 3. c4 {[%clk 00:15:01]} {[%emt 00:00:07]} d6 {[%clk
00:15:04]} {[%emt 00:00:12]} 4. Nc3 {[%clk 00:14:15]} {[%emt 00:00:51]} g6
{[%clk 00:15:07]} {[%emt 00:00:02]} 5. e4 {[%clk 00:13:44]} {[%emt 00:00:36]}
Bg7 {[%clk 00:15:11]} {[%emt 00:00:01]} 6. Be2 {[%clk 00:13:44]} {[%emt
00:00:05]} Na6 {[%clk 00:14:31]} {[%emt 00:00:45]} 7. Be3 {[%clk 00:13:18]}
{[%emt 00:00:30]} Qa5 {[%clk 00:13:25]} {[%emt 00:01:12]} 8. Bd2 {[%clk
00:10:16]} {[%emt 00:03:07]} Bd7 {[%clk 00:12:29]} {[%emt 00:01:01]} 9. f4
{[%clk 00:06:35]} {[%emt 00:03:46]} h5 {[%clk 00:10:39]} {[%emt 00:01:54]} 10.
Nf3 {[%clk 00:06:32]} {[%emt 00:00:09]} Ng4 {[%clk 00:06:40]} {[%emt 00:04:05]}
11. h3 {[%clk 00:05:37]} {[%emt 00:00:59]} Nh6 {[%clk 00:06:41]} {[%emt
00:00:04]} 12. O-O {[%clk 00:05:11]} {[%emt 00:00:31]} O-O-O {[%clk 00:06:08]}
{[%emt 00:00:39]} 13. Nb5 {[%clk 00:02:37]} {[%emt 00:02:38]} Qb6 {[%clk
00:05:53]} {[%emt 00:00:20]} 14. a4 {[%clk 00:02:37]} {[%emt 00:00:06]} Nb4
{[%clk 00:05:28]} {[%emt 00:00:30]} 15. a5 {[%clk 00:02:36]} {[%emt 00:00:06]}
Qa6 {[%clk 00:05:02]} {[%emt 00:00:30]} 16. Qb3 {[%clk 00:02:29]} {[%emt
00:00:13]} Kb8 {[%clk 00:04:39]} {[%emt 00:00:27]} 17. Bxb4 {[%clk 00:02:22]}
{[%emt 00:00:13]} cxb4 {[%clk 00:04:42]} {[%emt 00:00:02]} 18. Qxb4 {[%clk
00:02:25]} {[%emt 00:00:01]} Rc8 {[%clk 00:04:35]} {[%emt 00:00:13]} 19. Rfc1
{[%clk 00:01:38]} {[%emt 00:00:52]} Rc5 {[%clk 00:03:58]} {[%emt 00:00:41]} 20.
Qa4 {[%clk 00:01:21]} {[%emt 00:00:22]} Rhc8 {[%clk 00:03:47]} {[%emt
00:00:15]} 21. Rcb1 {[%clk 00:01:06]} {[%emt 00:00:21]} Ng8 {[%clk 00:02:33]}
{[%emt 00:01:19]} 22. Nd2 {[%clk 00:00:36]} {[%emt 00:00:36]} Bd4+ {[%clk
00:01:49]} {[%emt 00:00:48]} 23. Kh1 {[%clk 00:00:40]} Nf6 {[%clk 00:01:52]}
{[%emt 00:00:02]} 24. Ra3 {[%clk 00:00:40]} {[%emt 00:00:06]} e5 {[%clk
00:01:22]} {[%emt 00:00:34]} 25. dxe6 {[%clk 00:00:20]} {[%emt 00:00:24]} fxe6
{[%clk 00:01:24]} {[%emt 00:00:04]} 26. Nb3 {[%clk 00:00:19]} {[%emt 00:00:06]}
e5 {[%clk 00:01:28]} {[%emt 00:00:02]} 27. Nxc5 {[%clk 00:00:19]} {[%emt
00:00:05]} Bxc5 {[%clk 00:01:31]} {[%emt 00:00:01]} 28. b4 {[%clk 00:00:19]}
{[%emt 00:00:05]} Bd4 {[%clk 00:01:12]} {[%emt 00:00:23]} 29. Qd1 {[%clk
00:00:23]} {[%emt 00:00:02]} Nxe4 {[%clk 00:01:08]} {[%emt 00:00:10]} 30. Kh2
{[%clk 00:00:14]} {[%emt 00:00:14]} Nc3 {[%clk 00:01:05]} {[%emt 00:00:07]} 31.
Nxc3 {[%clk 00:00:16]} {[%emt 00:00:03]} Bxc3 {[%clk 00:00:55]} {[%emt
00:00:16]} 32. Rxc3 {[%clk 00:00:20]} exf4 {[%clk 00:00:55]} {[%emt 00:00:04]}
33. c5 {[%clk 00:00:18]} {[%emt 00:00:07]} Bb5 {[%clk 00:00:53]} {[%emt
00:00:08]} 34. Bxb5 {[%clk 00:00:19]} {[%emt 00:00:03]} Qxb5 {[%clk 00:00:56]}
{[%emt 00:00:02]} 35. Qxd6+ {[%clk 00:00:23]} {[%emt 00:00:02]} Ka8 {[%clk
00:00:59]} 36. Qxf4 {[%clk 00:00:22]} {[%emt 00:00:06]} Qe2 {[%clk 00:00:35]}
{[%emt 00:00:28]} 37. Re3 {[%clk 00:00:25]} {[%emt 00:00:03]} Qc2 {[%clk
00:00:30]} {[%emt 00:00:10]} 38. Rbe1 {[%clk 00:00:28]} {[%emt 00:00:02]} a6
{[%clk 00:00:23]} {[%emt 00:00:13]} 39. Re8 {[%clk 00:00:29]} {[%emt 00:00:03]}
Rxe8 {[%clk 00:00:27]} {[%emt 00:00:02]} 40. Rxe8+ {[%clk 00:00:33]} Ka7 {[%clk
00:00:31]} {[%emt 00:00:01]} 41. Qb8# {[%clk 00:00:37]} 1-0

[Event "Rapid Tournament (RAP)"]
[Site "Biel, Switzerland"]
[Date "2026.07.12"]
[Round "1.26"]
[White "Boyer, Jean-Francois"]
[Black "Frey, Fabian"]
[Result "0-1"]
[TimeControl "15 + 5"]
[WhiteTitle "-"]
[BlackTitle "-"]
[WhiteFideId "650226"]
[BlackFideId "1336487"]
[WhiteElo "1749"]
[BlackElo "2207"]

1. e4 {[%clk 00:15:06]} {[%emt 00:00:04]} c5 {[%clk 00:15:09]} {[%emt
00:00:02]} 2. Nf3 {[%clk 00:15:07]} {[%emt 00:00:04]} d6 {[%clk 00:15:12]}
{[%emt 00:00:02]} 3. d4 {[%clk 00:15:04]} {[%emt 00:00:09]} cxd4 {[%clk
00:15:15]} {[%emt 00:00:01]} 4. Nxd4 {[%clk 00:15:07]} {[%emt 00:00:02]} Nf6
{[%clk 00:15:19]} {[%emt 00:00:01]} 5. Nc3 {[%clk 00:15:10]} {[%emt 00:00:02]}
a6 {[%clk 00:15:22]} {[%emt 00:00:02]} 6. Bg5 {[%clk 00:14:15]} {[%emt
00:01:00]} e6 {[%clk 00:15:22]} {[%emt 00:00:05]} 7. Qd2 {[%clk 00:13:58]}
{[%emt 00:00:22]} Be7 {[%clk 00:15:18]} {[%emt 00:00:09]} 8. O-O-O {[%clk
00:13:22]} {[%emt 00:00:41]} b5 {[%clk 00:15:17]} {[%emt 00:00:06]} 9. f4
{[%clk 00:11:00]} {[%emt 00:02:27]} Bb7 {[%clk 00:14:57]} {[%emt 00:00:24]} 10.
e5 {[%clk 00:08:09]} {[%emt 00:02:57]} Nd5 {[%clk 00:13:19]} {[%emt 00:01:43]}
11. Nxd5 {[%clk 00:07:39]} {[%emt 00:00:35]} Bxg5 {[%clk 00:12:09]} {[%emt
00:01:15]} 12. fxg5 {[%clk 00:06:30]} {[%emt 00:01:14]} Bxd5 {[%clk 00:12:04]}
{[%emt 00:00:10]} 13. exd6 {[%clk 00:05:28]} {[%emt 00:01:07]} Qxd6 {[%clk
00:11:45]} {[%emt 00:00:25]} 14. Nf5 {[%clk 00:04:58]} {[%emt 00:00:34]} Qe5
{[%clk 00:11:38]} {[%emt 00:00:11]} 15. Bd3 {[%clk 00:04:02]} {[%emt 00:01:01]}
O-O {[%clk 00:11:19]} {[%emt 00:00:24]} 16. Ne7+ {[%clk 00:03:48]} {[%emt
00:00:19]} Kh8 {[%clk 00:11:21]} {[%emt 00:00:03]} 17. Rde1 {[%clk 00:02:45]}
{[%emt 00:01:09]} Qc7 {[%clk 00:11:12]} {[%emt 00:00:13]} 18. Nxd5 {[%clk
00:02:41]} {[%emt 00:00:10]} exd5 {[%clk 00:11:15]} {[%emt 00:00:02]} 19. Re3
{[%clk 00:02:45]} Nc6 {[%clk 00:09:56]} {[%emt 00:01:25]} 20. Rf1 {[%clk
00:02:46]} {[%emt 00:00:02]} Rae8 {[%clk 00:09:02]} {[%emt 00:00:59]} 21. Qe2
{[%clk 00:02:17]} {[%emt 00:00:34]} Rxe3 {[%clk 00:08:14]} {[%emt 00:00:54]} 22.
Qxe3 {[%clk 00:02:20]} {[%emt 00:00:03]} Nb4 {[%clk 00:08:04]} {[%emt
00:00:14]} 23. Kb1 {[%clk 00:01:32]} {[%emt 00:00:53]} Kg8 {[%emt 00:02:14]} 24.
h4 {[%clk 00:01:10]} Qc8 {[%clk 00:05:07]} {[%emt 00:01:21]} 25. Bf5 {[%clk
00:00:56]} {[%emt 00:00:19]} Qc4 {[%clk 00:05:10]} {[%emt 00:00:02]} 26. Rf4
{[%clk 00:00:41]} {[%emt 00:00:19]} Qxa2+ {[%clk 00:05:08]} {[%emt 00:00:07]}
27. Kc1 {[%clk 00:00:39]} {[%emt 00:00:07]} Qa1+ {[%clk 00:05:00]} {[%emt
00:00:12]} 28. Kd2 {[%clk 00:00:42]} {[%emt 00:00:03]} Qxb2 {[%clk 00:04:35]}
{[%emt 00:00:30]} 29. h5 {[%clk 00:00:19]} {[%emt 00:00:28]} Na2 {[%clk
00:04:13]} {[%emt 00:00:27]} 30. Ke2 {[%clk 00:00:15]} {[%emt 00:00:09]} Nc3+
{[%clk 00:04:08]} {[%emt 00:00:09]} 31. Kd3 {[%clk 00:00:11]} {[%emt 00:00:10]}
Ne4 {[%clk 00:03:53]} {[%emt 00:00:20]} 32. Bxe4 {[%clk 00:00:09]} {[%emt
00:00:07]} dxe4+ {[%clk 00:03:57]} {[%emt 00:00:02]} 33. Rxe4 {[%clk 00:00:11]}
{[%emt 00:00:02]} Qa3+ {[%clk 00:03:01]} {[%emt 00:00:59]} 34. Ke2 {[%clk
00:00:15]} {[%emt 00:00:03]} Qd6 {[%clk 00:02:57]} {[%emt 00:00:09]} 35. Rd4
{[%clk 00:00:06]} {[%emt 00:00:15]} Qc6 {[%clk 00:02:57]} {[%emt 00:00:02]} 36.
Kf2 {[%clk 00:00:00]} {[%emt 00:00:08]} 0-1

[Event "Rapid Tournament (RAP)"]
[Site "Biel, Switzerland"]
[Date "2026.07.12"]
[Round "1.27"]
[White "Rohrer, Christophe"]
[Black "Schneggenburger, Miguel"]
[Result "1-0"]
[TimeControl "15 + 5"]
[WhiteTitle "-"]
[BlackTitle "-"]
[WhiteFideId "1326546"]
[BlackFideId "1361279"]
[WhiteElo "2202"]
[BlackElo "1742"]

1. e4 {[%clk 00:15:07]} {[%emt 00:00:01]} e6 {[%clk 00:15:08]} {[%emt
00:00:02]} 2. d4 {[%clk 00:15:09]} {[%emt 00:00:03]} d5 {[%clk 00:15:11]}
{[%emt 00:00:02]} 3. Nd2 {[%clk 00:15:07]} {[%emt 00:00:07]} dxe4 {[%clk
00:15:14]} {[%emt 00:00:02]} 4. Nxe4 {[%clk 00:15:09]} {[%emt 00:00:03]} Nd7
{[%clk 00:15:16]} {[%emt 00:00:03]} 5. Nf3 {[%clk 00:15:03]} {[%emt 00:00:11]}
Ngf6 {[%clk 00:15:15]} {[%emt 00:00:05]} 6. Nxf6+ {[%clk 00:14:16]} {[%emt
00:00:53]} Nxf6 {[%clk 00:15:15]} {[%emt 00:00:04]} 7. Bg5 {[%clk 00:14:18]}
{[%emt 00:00:04]} Be7 {[%clk 00:14:54]} {[%emt 00:00:25]} 8. Bc4 {[%clk
00:13:53]} {[%emt 00:00:31]} O-O {[%clk 00:14:09]} {[%emt 00:00:50]} 9. O-O
{[%clk 00:13:43]} {[%emt 00:00:15]} h6 {[%clk 00:13:45]} {[%emt 00:00:28]} 10.
Bh4 {[%clk 00:13:45]} {[%emt 00:00:04]} b6 {[%clk 00:13:07]} {[%emt 00:00:43]}
11. Qe2 {[%clk 00:12:53]} {[%emt 00:00:58]} c5 {[%clk 00:11:25]} {[%emt
00:01:46]} 12. Rad1 {[%clk 00:12:00]} {[%emt 00:00:57]} Qc7 {[%clk 00:10:46]}
{[%emt 00:00:43]} 13. Ne5 {[%clk 00:08:22]} {[%emt 00:03:45]} Bb7 {[%clk
00:10:04]} {[%emt 00:00:45]} 14. Rfe1 {[%clk 00:08:03]} {[%emt 00:00:27]} Rac8
{[%clk 00:09:19]} {[%emt 00:00:48]} 15. Ng6 {[%clk 00:06:20]} {[%emt 00:01:49]}
cxd4 {[%clk 00:08:20]} {[%emt 00:01:04]} 16. Nxe7+ {[%clk 00:05:57]} {[%emt
00:00:29]} Qxe7 {[%clk 00:08:04]} {[%emt 00:00:20]} 17. Rxd4 {[%clk 00:05:53]}
{[%emt 00:00:09]} Qc5 {[%clk 00:06:13]} {[%emt 00:01:55]} 18. Qe5 {[%clk
00:04:51]} {[%emt 00:01:09]} Qc6 {[%clk 00:05:31]} {[%emt 00:00:45]} 19. f3
{[%clk 00:04:43]} {[%emt 00:00:14]} Nd7 {[%clk 00:03:38]} {[%emt 00:01:58]} 20.
Qe3 {[%clk 00:03:55]} {[%emt 00:00:54]} Nc5 {[%clk 00:01:43]} {[%emt 00:02:00]}
21. Rg4 {[%clk 00:03:34]} {[%emt 00:00:25]} f5 {[%clk 00:00:46]} {[%emt
00:01:01]} 22. Rg6 {[%clk 00:03:20]} {[%emt 00:00:20]} f4 {[%clk 00:00:07]}
{[%emt 00:00:44]} 23. Qe5 {[%clk 00:03:09]} {[%emt 00:00:16]} 1-0